bitfinex/quotes_SOLUSD_20240811
["timestamp","ask_amount","ask_price","bid_price","bid_amount"]
[1723375415687,0.25098,153.89,153.8,0.8368772]
[1723375415888,45.12549,153.89,153.8,0.8368772]
[1723375416124,0.12549,153.89,153.8,0.8368772]
[1723375416390,45.50196,153.89,153.8,0.8368772]
[1723375416592,45.37647,153.89,153.8,0.8368772]
[1723375417123,45.37647,153.89,153.77,14.4065772]
[1723375417322,0.25098,153.88,153.77,14.4065772]
[1723375417496,0.12549,153.87,153.77,14.4065772]
[1723375417699,0.37647,153.88,153.77,14.4065772]
[1723375418624,0.12549,153.86,153.73,6.6715395]
[1723375418795,46.87663576,153.86,153.73,6.6715395]
[1723375419104,20.25098,153.85,153.73,6.6715395]
[1723375419414,45.25098,153.84,153.73,6.6715395]
[1723375419610,0.12549,153.82,153.73,6.6715395]
[1723375419813,45.25098,153.82,153.73,6.6715395]
[1723375420010,0.12549,153.81,153.73,6.6715395]
[1723375420196,0.12549,153.79,153.73,6.6715395]
[1723375420395,6.3477,153.8,153.67,26.26040651]
[1723375420608,6.3477,153.8,153.69,6.66973195]
[1723375420813,0.37647,153.79,153.69,6.66973195]
[1723375421001,6.3477,153.8,153.69,6.66973195]
[1723375421512,6.3477,153.8,153.7,20.0]
[1723375422320,2.00220761,153.79,153.69,6.66973195]
[1723375422618,0.12549,153.79,153.7,20.0]
[1723375422916,6.3477,153.8,153.68,20.0]
[1723375423297,1.62586724,153.79,153.68,20.0]
[1723375423612,0.12549,153.78,153.68,20.0]
[1723375423816,0.37647,153.78,153.67,32.93089151]
[1723375423994,0.12549,153.76,153.67,16.86119151]
[1723375424210,45.37647,153.76,153.67,16.86119151]
[1723375424496,45.37647,153.76,153.67,6.670485]
[1723375424697,45.12549,153.76,153.67,6.670485]
[1723375425004,0.12549,153.75,153.67,6.670485]
[1723375425322,0.37647,153.75,153.66,10.19386137]
[1723375425514,0.37647,153.75,153.64,0.8368772]
[1723375425719,0.37647,153.75,153.64,17.70227022]
[1723375426024,0.37647,153.75,153.65,20.0]
[1723375426225,2.00295104,153.75,153.65,20.0]
[1723375426405,0.25098,153.75,153.65,20.0]
[1723375426600,45.0,153.76,153.65,20.0]
[1723375426801,16.3962,153.77,153.65,20.0]
[1723375427308,0.25098,153.76,153.65,20.0]
[1723375427706,16.3962,153.77,153.65,20.0]
[1723375428029,16.3962,153.77,153.66,0.12549]
[1723375428498,16.3962,153.77,153.65,20.0]
[1723375429001,16.3962,153.77,153.66,0.12549]
[1723375429320,16.3962,153.77,153.66,0.37647]
[1723375429515,1.62594977,153.76,153.65,20.0]
[1723375429702,16.3962,153.77,153.65,20.0]
[1723375429902,6.3477,153.8,153.66,0.25098]
[1723375430413,0.12549,153.79,153.66,0.25098]
[1723375430607,46.75148913,153.79,153.66,0.12549]
[1723375430917,45.12549,153.79,153.65,20.0]
[1723375431117,1.62611982,153.78,153.65,20.0]
[1723375431315,0.12549,153.77,153.65,20.0]
[1723375431723,45.0,153.79,153.65,20.0]
[1723375431900,46.62597185,153.79,153.65,20.0]
[1723375432238,0.37647,153.78,153.66,0.12549]
[1723375432620,0.37647,153.78,153.64,17.70227022]
[1723375433125,1.62633934,153.77,153.64,17.70227022]
[1723375433337,0.37647,153.76,153.64,17.70227022]
[1723375433519,0.12549,153.78,153.64,17.70227022]
[1723375433828,0.12549,153.77,153.64,17.70227022]
[1723375434027,1.87734286,153.77,153.64,17.70227022]
[1723375434202,0.12549,153.76,153.65,20.0]
[1723375434406,0.12549,153.75,153.65,20.0]
[1723375434614,0.12549,153.76,153.65,20.0]
[1723375434829,0.12549,153.75,153.65,20.0]
[1723375435027,21.8559,153.74,153.64,17.70227022]
[1723375435204,65.50196,153.73,153.64,17.70227022]
[1723375435404,65.50196,153.73,153.64,0.8368772]
[1723375435634,0.12549,153.71,153.64,0.8368772]
[1723375435808,0.50196,153.71,153.64,0.8368772]
[1723375438318,1.62702173,153.7,153.64,0.8368772]
[1723375438512,0.12549,153.69,153.64,0.8368772]
[1723375438924,0.25098,153.69,153.64,0.8368772]
[1723375439120,0.12549,153.68,153.64,0.8368772]
[1723375439326,0.25098,153.68,153.64,0.8368772]
[1723375439823,1.62721972,153.68,153.64,0.8368772]
[1723375440030,0.12549,153.67,153.64,0.8368772]
[1723375440539,0.12549,153.7,153.64,0.8368772]
[1723375440741,21.8559,153.74,153.64,0.8368772]
[1723375441110,1.62692428,153.73,153.64,0.8368772]
[1723375441717,21.8559,153.74,153.64,0.8368772]
[1723375442329,20.0,153.73,153.64,0.8368772]
[1723375444112,21.62689108,153.73,153.64,0.8368772]
[1723375444745,0.12549,153.72,153.64,0.8368772]
[1723375444945,21.62664336,153.73,153.64,0.8368772]
[1723375445121,20.0,153.73,153.64,0.8368772]
[1723375445436,21.62664142,153.73,153.64,0.8368772]
[1723375445646,21.62684479,153.73,153.64,0.8368772]
[1723375445941,20.0,153.73,153.64,0.8368772]
[1723375446167,45.0,153.72,153.64,0.8368772]
[1723375446616,20.12549,153.71,153.64,0.8368772]
[1723375446936,45.25098,153.7,153.64,0.8368772]
[1723375447118,20.12549,153.71,153.64,0.8368772]
[1723375447321,0.12549,153.7,153.64,0.8368772]
[1723375447521,45.12549,153.7,153.64,0.8368772]
[1723375448117,1.7523238,153.71,153.64,0.8368772]
[1723375448319,0.12549,153.71,153.64,0.8368772]
[1723375448661,21.62677504,153.73,153.64,0.8368772]
[1723375448941,20.0,153.73,153.64,0.8368772]
[1723375449548,21.62676091,153.73,153.64,0.8368772]
[1723375449724,21.62676187,153.73,153.64,0.8368772]
[1723375449933,1.62691015,153.72,153.64,0.8368772]
[1723375450136,20.0,153.73,153.64,0.8368772]
[1723375450544,45.37647,153.72,153.64,0.8368772]
[1723375450849,1.62674083,153.71,153.64,0.8368772]
[1723375451151,0.12549,153.71,153.64,0.8368772]
[1723375451928,0.25098,153.71,153.64,0.8368772]
[1723375452129,0.25098,153.7,153.64,0.8368772]
[1723375453156,0.12549,153.7,153.64,0.8368772]
[1723375453544,0.25098,153.71,153.64,0.8368772]
[1723375453732,20.0,153.73,153.64,0.8368772]
[1723375453931,20.0,153.73,153.65,15.615]
[1723375454921,24.74000137,153.78,153.65,15.615]
[1723375455126,23.1136,153.78,153.65,15.615]
[1723375455852,6.6232,153.78,153.65,15.615]
[1723375456748,6.6232,153.78,153.64,0.9623672]
[1723375456749,24.73976977,153.82,153.66,6.1802]
[1723375456959,23.1136,153.82,153.67,15.74049]
[1723375457123,7.02748239,153.87,153.71,6.1802]
[1723375457124,6.6232,153.86,153.71,6.1802]
[1723375457631,1.62554682,153.85,153.71,6.1802]
[1723375457833,1.62572733,153.85,153.71,6.1802]
[1723375458034,6.6232,153.8,153.63,7.27865741]
[1723375458250,10.07165766,153.79,153.56,10.19550583]
[1723375458564,21.62677365,153.78,153.64,16.4518772]
[1723375458752,31.69843131,153.78,153.64,16.4518772]
[1723375458956,30.07165766,153.78,153.64,16.4518772]
[1723375459249,57.20043696,153.77,153.64,16.4518772]
[1723375459551,0.12549,153.75,153.64,16.4518772]
[1723375459726,45.50196,153.75,153.64,16.4518772]
[1723375459931,20.0,153.74,153.64,16.4518772]
[1723375460239,0.12549,153.72,153.64,16.4518772]
[1723375460442,20.0,153.72,153.64,16.4518772]
[1723375461129,10.07165766,153.77,153.64,16.4518772]
[1723375461130,1.62661024,153.76,153.64,16.4518772]
[1723375461326,0.50196,153.75,153.64,16.4518772]
[1723375461530,1.62664069,153.74,153.64,16.4518772]
[1723375461753,1.62651489,153.74,153.64,16.4518772]
[1723375461954,1.62660967,153.74,153.64,16.4518772]
[1723375462460,20.0,153.76,153.64,16.4518772]
[1723375462461,1.62664976,153.73,153.64,16.4518772]
[1723375462671,20.0,153.76,153.64,16.4518772]
[1723375462846,47.12863031,153.75,153.64,16.4518772]
[1723375463347,20.0,153.74,153.64,16.4518772]
[1723375463548,0.12549,153.72,153.64,16.4518772]
[1723375463733,20.37647,153.72,153.64,16.4518772]
[1723375463940,45.12549,153.71,153.64,16.4518772]
[1723375464158,20.12549,153.72,153.64,16.4518772]
[1723375464373,45.0,153.73,153.64,16.4518772]
[1723375464581,0.12549,153.74,153.64,16.4518772]
[1723375464866,10.07165766,153.77,153.64,16.4518772]
[1723375465752,1.62640036,153.76,153.64,16.4518772]
[1723375466059,10.07165766,153.77,153.64,16.4518772]
[1723375466251,46.62660014,153.76,153.64,16.4518772]
[1723375466638,0.12549,153.75,153.64,16.4518772]
[1723375466838,0.12549,153.74,153.64,16.4518772]
[1723375467057,0.37647,153.74,153.64,16.4518772]
[1723375467240,45.0,153.74,153.64,16.4518772]
[1723375467440,0.12549,153.75,153.64,16.4518772]
[1723375467646,0.12549,153.74,153.64,16.4518772]
[1723375467836,0.25098,153.75,153.64,16.4518772]
[1723375468041,0.12549,153.75,153.64,16.4518772]
[1723375469567,0.12549,153.74,153.64,16.4518772]
[1723375469740,0.25098,153.74,153.64,16.4518772]
[1723375470059,0.12549,153.75,153.64,16.4518772]
[1723375470363,0.12549,153.73,153.64,16.4518772]
[1723375470737,45.12549,153.74,153.64,16.4518772]
[1723375470948,0.12549,153.73,153.64,16.4518772]
[1723375471182,0.37647,153.73,153.64,16.4518772]
[1723375471460,0.12549,153.71,153.64,0.8368772]
[1723375471680,20.37647,153.71,153.64,0.8368772]
[1723375471842,45.12549,153.7,153.64,0.8368772]
[1723375472164,20.0,153.69,153.64,0.8368772]
[1723375472360,0.25098,153.71,153.64,0.8368772]
[1723375472562,0.12549,153.7,153.64,0.8368772]
[1723375473070,65.12549,153.71,153.64,0.8368772]
[1723375473256,20.0,153.71,153.64,0.8368772]
[1723375473462,0.12549,153.72,153.64,0.8368772]
[1723375473782,20.0,153.74,153.64,0.8368772]
[1723375473783,45.12549,153.73,153.64,0.8368772]
[1723375474072,1.6269879,153.72,153.64,0.8368772]
[1723375474238,0.12549,153.71,153.64,0.8368772]
[1723375474436,46.75277984,153.71,153.64,0.8368772]
[1723375474652,0.12549,153.72,153.64,0.8368772]
[1723375475143,17.30458445,153.75,153.64,7.2950772]
[1723375475446,6.0011,153.76,153.65,15.0311]
[1723375475969,15.6778,153.79,153.65,15.0311]
[1723375476485,1.62628736,153.78,153.65,15.0311]
[1723375476768,27.22793964,153.79,153.65,15.0311]
[1723375477073,25.6014021,153.79,153.65,15.0311]
[1723375477236,11.54987666,153.79,153.65,15.0311]
[1723375477672,9.9236021,153.79,153.65,15.0311]
[1723375478375,9.9236021,153.79,153.66,0.12549]
[1723375478750,20.0,153.78,153.67,15.0311]
[1723375479548,21.62601824,153.78,153.67,15.0311]
[1723375480274,1.62602362,153.82,153.69,15.0311]
[1723375480475,39.03625656,153.83,153.69,15.0311]
[1723375480655,16.69411783,153.83,153.69,15.0311]
[1723375480860,6.0011,153.84,153.71,15.0311]
[1723375481047,1.6256535,153.83,153.71,15.0311]
[1723375481247,1.62576027,153.82,153.71,15.0311]
[1723375482350,1.62584731,153.83,153.71,15.0311]
[1723375482675,6.66524571,153.87,153.73,15.0311]
[1723375483050,1.62536048,153.86,153.73,15.0311]
[1723375483250,1.62546366,153.86,153.73,15.0311]
[1723375483450,6.66524571,153.87,153.73,15.0311]
[1723375483779,1.62515642,153.88,153.78,15.0311]
[1723375484474,13.34350346,153.9,153.78,15.0311]
[1723375484784,1.62484525,153.89,153.78,15.0311]
[1723375485075,1.62482647,153.91,153.78,15.0311]
[1723375485378,1.62475989,153.93,153.79,0.12549]
[1723375485582,8.98471321,153.95,153.79,16.2808]
[1723375485744,8.98471321,153.95,153.82,6.6065]
[1723375485955,6.66569968,153.97,153.82,6.6065]
[1723375486161,20.6867929,153.98,153.83,16.2808]
[1723375486365,1.62436469,153.96,153.83,16.2808]
[1723375487355,8.98471321,153.98,153.83,16.2808]
[1723375487867,8.98471321,153.98,153.84,0.12549]
[1723375488280,8.98471321,153.98,153.84,0.25098]
[1723375488789,8.98471321,153.98,153.86,6.6065]
[1723375488992,8.98471321,154.01,153.86,6.6065]
[1723375489193,8.98471321,154.01,153.88,6.6065]
[1723375489489,1.62377912,154.03,153.89,16.2808]
[1723375489797,17.37889416,154.04,153.89,16.2808]
[1723375490076,10.60837843,154.04,153.89,16.2808]
[1723375490294,8.98471321,154.04,153.89,16.2808]
[1723375490476,10.17987356,154.06,153.92,0.12549]
[1723375490656,1.62322798,154.1,153.93,22.8873]
[1723375491257,1.62322798,154.1,153.95,16.2808]
[1723375492179,1.62309662,154.12,153.97,6.6065]
[1723375492396,1.62309662,154.12,153.98,16.2808]
[1723375492685,8.11804654,154.14,153.99,0.12549]
[1723375492981,1.6226205,154.13,153.99,45.37647]
[1723375493191,1.62243088,154.15,153.99,0.12549]
[1723375493365,1.62243088,154.12,153.98,16.2808]
[1723375494549,46.62243088,154.12,153.98,16.2808]
[1723375494755,0.12549,154.1,153.98,16.2808]
[1723375494968,1.87401923,154.1,153.98,16.2808]
[1723375495178,0.12549,154.08,153.98,16.2808]
[1723375495397,1.74867659,154.08,153.98,16.2808]
[1723375495596,0.12549,154.06,153.98,16.2808]
[1723375495893,1.74873017,154.06,153.98,16.2808]
[1723375496096,0.12549,154.05,153.98,16.2808]
[1723375496267,0.37647,154.05,153.98,16.2808]
[1723375496601,0.25098,154.05,153.98,16.2808]
[1723375496989,1.87433488,154.05,153.98,16.2808]
[1723375497376,0.25098,154.05,153.98,16.2808]
[1723375497599,0.12549,154.05,153.98,16.2808]
[1723375497975,0.25098,154.05,153.98,16.2808]
[1723375498176,0.12549,154.05,153.98,16.2808]
[1723375499080,10.75218714,154.13,153.98,16.2808]
[1723375499400,0.12549,154.09,153.98,16.2808]
[1723375499592,0.25098,154.1,153.98,16.2808]
[1723375499898,1.87403843,154.1,153.98,16.2808]
[1723375500574,6.3605,154.08,153.98,16.2808]
[1723375500783,0.12549,154.06,153.98,16.2808]
[1723375501086,1.87460138,154.06,153.98,16.2808]
[1723375501285,0.12549,154.04,153.98,16.2808]
[1723375501482,1.87459102,154.04,153.93,6.6065]
[1723375501685,1.87459102,154.04,153.93,22.8873]
[1723375501686,0.12549,154.02,153.93,22.8873]
[1723375501899,1.87487202,154.02,153.93,22.8873]
[1723375502086,0.25098,154.01,153.93,22.8873]
[1723375502277,0.12549,154.0,153.93,22.8873]
[1723375502476,0.25098,154.0,153.93,22.8873]
[1723375502682,0.12549,153.98,153.93,22.8873]
[1723375502909,1.87506486,153.98,153.93,22.8873]
[1723375503208,0.25098,153.97,153.93,22.8873]
[1723375503768,0.12549,153.96,153.88,22.8873]
[1723375504006,1.87543061,153.96,153.88,22.8873]
[1723375504213,0.25098,153.95,153.88,22.8873]
[1723375504505,0.12549,153.96,153.88,22.8873]
[1723375504678,0.25098,153.97,153.88,22.8873]
[1723375504880,1.87518152,153.97,153.88,22.8873]
[1723375505611,0.12549,153.96,153.88,22.8873]
[1723375505918,1.74968973,153.96,153.88,22.8873]
[1723375506229,1.87535544,153.95,153.88,22.8873]
[1723375506503,0.25098,153.95,153.88,22.8873]
[1723375506706,0.12549,153.94,153.88,22.8873]
[1723375507011,0.12549,153.93,153.88,22.8873]
[1723375507214,0.37647,153.93,153.88,22.8873]
[1723375507504,0.25098,153.93,153.88,22.8873]
[1723375507668,0.25098,153.93,153.88,16.2808]
[1723375507871,0.37647,153.92,153.88,16.2808]
[1723375508092,0.25098,153.91,153.84,6.5094]
[1723375508302,1.87588278,153.9,153.84,6.5094]
[1723375508502,1.87588278,153.9,153.83,15.66]
[1723375508503,0.12549,153.88,153.83,15.66]
[1723375508700,0.25098,153.88,153.83,15.66]
[1723375509080,0.12549,153.87,153.83,15.66]
[1723375509280,0.12549,153.88,153.83,15.66]
[1723375510782,0.25098,153.88,153.83,15.66]
[1723375511021,0.12549,153.86,153.83,15.66]
[1723375511383,0.12549,153.88,153.83,15.66]
[1723375511607,0.25098,153.88,153.83,15.66]
[1723375511782,0.25098,153.87,153.83,15.66]
[1723375511984,0.12549,153.86,153.8,6.5094]
[1723375512180,0.12549,153.89,153.8,6.5094]
[1723375512523,0.12549,153.88,153.8,6.5094]
[1723375512806,2.00161055,153.88,153.8,6.5094]
[1723375512985,1.62508633,153.96,153.8,6.5094]
[1723375513197,1.62486415,153.95,153.8,6.5094]
[1723375514195,20.0,153.92,153.8,6.5094]
[1723375514418,2.00127298,153.91,153.8,6.5094]
[1723375514624,0.12549,153.9,153.8,6.5094]
[1723375514784,1.75046761,153.9,153.8,6.5094]
[1723375514985,0.12549,153.9,153.8,6.5094]
[1723375515305,1.62480429,153.9,153.8,6.5094]
[1723375515501,1.75031706,153.91,153.8,6.5094]
[1723375516183,0.37647,153.9,153.8,6.5094]
[1723375516384,1.7504193,153.89,153.8,6.5094]
[1723375517117,0.12549,153.88,153.8,6.5094]
[1723375517410,20.25098,153.89,153.8,6.5094]
[1723375517618,21.62484585,153.89,153.8,6.5094]
[1723375517829,20.0,153.89,153.8,6.5094]
[1723375517982,21.62478469,153.92,153.8,6.5094]
[1723375518186,20.0,153.92,153.8,6.5094]
[1723375518512,1.62469284,153.91,153.8,6.5094]
[1723375519793,2.0013743,153.9,153.8,6.5094]
[1723375519989,1.62511741,153.89,153.8,6.5094]
[1723375520619,20.37647,153.9,153.8,6.5094]
[1723375521119,20.25098,153.9,153.8,6.5094]
[1723375521302,20.0,153.9,153.8,6.5094]
[1723375521500,20.12549,153.92,153.8,6.5094]
[1723375521702,6.5834,153.94,153.8,6.5094]
[1723375522002,1.62461542,153.93,153.8,6.5094]
[1723375522315,1.62463844,153.92,153.8,6.5094]
[1723375523206,20.0,153.93,153.81,15.66]
[1723375523390,6.65961567,153.95,153.82,0.25098]
[1723375523603,8.11804654,153.97,153.82,0.25098]
[1723375524117,1.62436605,153.96,153.81,15.66]
[1723375524305,1.6247774,153.95,153.81,15.66]
[1723375524815,0.12549,153.94,153.81,15.66]
[1723375524995,0.25098,153.94,153.81,15.66]
[1723375525198,0.12549,153.92,153.81,15.66]
[1723375525404,0.25098,153.92,153.81,15.66]
[1723375525609,0.12549,153.91,153.81,15.66]
[1723375525920,0.12549,153.9,153.81,15.66]
[1723375526331,20.25098,153.9,153.81,15.66]
[1723375526504,0.12549,153.89,153.81,15.66]
[1723375526997,20.0,153.9,153.81,15.66]
[1723375527196,282.02563807,154.05,153.81,15.66]
[1723375527197,20.0,153.96,153.81,15.66]
[1723375527402,8.11804654,153.97,153.81,15.66]
[1723375527608,8.11804654,153.97,153.82,0.25098]
[1723375528031,8.11804654,153.97,153.83,16.08]
[1723375528197,6.5834,153.98,153.83,16.08]
[1723375528814,6.5834,153.98,153.85,6.6356]
[1723375529112,8.11804654,154.01,153.86,16.08]
[1723375529308,6.5798,154.02,153.88,16.08]
[1723375529501,1.62384991,154.01,153.88,16.08]
[1723375529700,6.5798,154.02,153.88,16.08]
[1723375530501,20.0,154.01,153.88,16.08]
[1723375530941,14.51321128,154.05,153.91,16.08]
[1723375531428,1.62339127,154.04,153.91,16.08]
[1723375531803,9.74143781,154.04,153.91,16.08]
[1723375532005,8.11804654,154.04,153.91,16.08]
[1723375532619,17.66987274,154.08,153.92,6.6356]
[1723375532918,1.62338779,154.07,153.93,16.08]
[1723375533318,24.16424654,154.08,153.93,16.08]
[1723375533557,8.11804654,154.08,153.93,16.08]
[1723375534043,8.11804654,154.08,153.94,0.12549]
[1723375534246,8.11804654,154.08,153.95,22.7156]
[1723375535042,6.5798,154.1,153.95,22.7156]
[1723375535827,16.32089681,154.1,153.95,22.7156]
[1723375536288,65.50196,154.09,153.95,22.7156]
[1723375536572,0.12549,154.07,153.95,22.7156]
[1723375536851,0.37647,154.07,153.95,22.7156]
[1723375537044,28.11804654,154.09,153.95,22.7156]
[1723375537424,1.62296958,154.08,153.95,22.7156]
[1723375537623,28.11804654,154.09,153.96,16.08]
[1723375537949,20.0,154.09,153.96,16.08]
[1723375538145,1.62288171,154.08,153.96,16.08]
[1723375538333,1.62303239,154.07,153.96,16.08]
[1723375538539,1.62295145,154.11,153.96,16.08]
[1723375538741,1.62300569,154.1,153.96,16.08]
[1723375539327,0.25098,154.09,153.96,16.08]
[1723375539547,1.74851921,154.08,153.96,16.08]
[1723375539724,1.62296911,154.08,153.96,16.08]
[1723375539931,45.37647,154.09,153.96,16.08]
[1723375540545,1.62296121,154.08,153.96,16.08]
[1723375540739,20.0,154.08,153.96,16.08]
[1723375541140,1.87402819,154.07,153.96,16.08]
[1723375542154,20.0,154.08,153.96,16.08]
[1723375542363,1.62283328,154.07,153.96,16.08]
[1723375542544,1.62288699,154.11,153.96,16.08]
[1723375542748,1.62291609,154.1,153.96,16.08]
[1723375543263,0.12549,154.09,153.96,16.08]
[1723375543464,1.74854059,154.09,153.96,16.08]
[1723375543830,0.12549,154.08,153.96,16.08]
[1723375544144,0.25098,154.08,153.96,16.08]
[1723375544347,0.12549,154.07,153.96,16.08]
[1723375544538,1.74853564,154.07,153.96,16.08]
[1723375544734,0.12549,154.06,153.96,16.08]
[1723375544964,0.25098,154.06,153.96,16.08]
[1723375545260,0.25098,154.05,153.96,16.08]
[1723375545633,0.12549,154.04,153.96,16.08]
[1723375546449,0.12549,154.05,153.96,16.08]
[1723375546656,0.12549,154.11,153.96,16.08]
[1723375546868,0.37647,154.11,153.96,16.08]
[1723375547155,0.12549,154.09,153.96,16.08]
[1723375547352,1.99960585,154.09,153.96,16.08]
[1723375547655,0.37647,154.09,153.96,16.08]
[1723375548046,0.12549,154.07,153.96,16.08]
[1723375548248,0.37647,154.07,153.96,16.08]
[1723375548455,0.12549,154.06,153.96,16.08]
[1723375548650,0.12549,154.05,153.96,16.08]
[1723375548860,0.25098,154.05,153.96,16.08]
[1723375549039,0.12549,154.04,153.96,16.08]
[1723375550342,20.0,154.05,153.96,16.08]
[1723375550651,20.0,154.07,153.96,16.08]
[1723375550836,1.62315778,154.06,153.96,16.08]
[1723375551033,6.0217,154.02,153.87,6.65161394]
[1723375551236,6.0217,154.02,153.83,16.311]
[1723375551237,44.91442143,154.01,153.83,16.311]
[1723375551433,49.73031141,154.01,153.83,16.311]
[1723375551637,0.37647,154.0,153.83,16.311]
[1723375551953,0.12549,153.98,153.83,16.311]
[1723375552157,0.12549,153.96,153.83,16.311]
[1723375552356,0.12549,153.94,153.83,16.311]
[1723375552655,0.12549,153.92,153.83,16.311]
[1723375552838,65.50196,153.92,153.83,16.311]
[1723375553046,76.37060717,153.92,153.83,16.311]
[1723375553448,77.99552268,153.92,153.83,16.311]
[1723375554659,76.37060717,153.92,153.83,16.311]
[1723375555438,65.50196,153.92,153.83,16.311]
[1723375555646,0.12549,153.9,153.83,16.311]
[1723375555949,45.50196,153.9,153.83,16.311]
[1723375556657,0.50196,153.9,153.83,16.311]
[1723375558646,8.10454084,153.94,153.83,16.311]
[1723375558966,1.62480746,153.93,153.83,16.311]
[1723375559467,17.23694584,153.94,153.83,16.311]
[1723375559643,8.10454084,153.94,153.83,16.311]
[1723375559844,0.37647,153.93,153.83,16.311]
[1723375560044,0.12549,153.92,153.83,16.311]
[1723375560966,0.12549,153.91,153.83,16.311]
[1723375561174,0.37647,153.91,153.83,16.311]
[1723375561466,0.12549,153.89,153.83,16.311]
[1723375561642,0.12549,153.92,153.83,16.311]
[1723375561850,8.10454084,153.94,153.83,16.311]
[1723375562049,1.62461052,153.93,153.83,16.311]
[1723375562256,1.62462293,153.92,153.83,16.311]
[1723375562465,1.62459753,153.93,153.83,16.311]
[1723375563176,8.10454084,153.94,153.83,16.311]
[1723375563470,45.0,153.93,153.83,16.311]
[1723375563864,0.12549,153.92,153.83,16.311]
[1723375564063,10.18542559,153.98,153.83,16.311]
[1723375564254,8.99662646,153.99,153.84,45.25098]
[1723375565157,1.62422917,153.98,153.83,16.311]
[1723375565349,0.12549,153.97,153.84,0.12549]
[1723375565563,0.12549,153.96,153.84,0.12549]
[1723375565743,1.62430154,153.95,153.84,45.12549]
[1723375565971,0.25098,153.96,153.86,16.2972]
[1723375566292,16.311,154.03,153.86,16.2972]
[1723375566293,29.5713964,154.06,153.88,16.42269]
[1723375566572,10.46586442,154.05,153.88,16.42269]
[1723375566787,1.6238894,154.04,153.88,16.42269]
[1723375567086,17.83871807,154.05,153.88,16.42269]
[1723375567246,17.83871807,154.05,153.87,0.25098]
[1723375567247,8.84209161,154.05,153.9,0.12549]
[1723375567446,8.84209161,154.05,153.9,0.25098]
[1723375567680,8.84209161,154.05,153.9,45.25098]
[1723375567853,8.84209161,154.05,153.92,0.12549]
[1723375568048,260.9,154.07,153.92,45.12549]
[1723375568952,17.83871807,154.09,153.95,6.387]
[1723375569160,28.01628304,154.09,153.95,6.387]
[1723375569581,8.84209161,154.09,153.96,16.2972]
[1723375569879,8.84209161,154.09,153.97,0.12549]
[1723375570264,8.84209161,154.09,153.97,45.12549]
[1723375570460,10.61954101,154.13,153.97,45.12549]
[1723375570648,8.84209161,154.12,153.98,0.12549]
[1723375570848,1.62267721,154.11,153.97,45.12549]
[1723375571070,1.62290154,154.1,153.97,45.12549]
[1723375571572,1.62297175,154.11,153.96,16.2972]
[1723375571869,8.84209161,154.12,153.97,45.37647]
[1723375572050,0.12549,154.11,153.97,45.37647]
[1723375572254,8.84209161,154.12,153.97,45.37647]
[1723375572466,8.84209161,154.12,153.99,16.2972]
[1723375572672,6.3285964,154.14,154.0,45.50196]
[1723375572858,6.6626,154.13,153.94,16.2972]
[1723375573062,7.95209278,154.12,153.94,16.2972]
[1723375573380,17.69427363,154.11,153.94,16.2972]
[1723375573588,7.9522665,154.1,153.94,16.2972]
[1723375573883,17.69427363,154.09,153.94,16.2972]
[1723375574059,67.1254731,154.08,153.94,16.2972]
[1723375574264,0.12549,154.06,153.94,16.2972]
[1723375574581,0.12549,154.04,153.94,16.2972]
[1723375576469,1.74899094,154.04,153.94,16.2972]
[1723375576672,0.37647,154.03,153.94,16.2972]
[1723375576864,0.12549,154.02,153.94,16.2972]
[1723375577060,0.25098,154.03,153.94,16.2972]
[1723375577366,0.25098,154.02,153.94,16.2972]
[1723375577583,0.37647,154.01,153.94,16.2972]
[1723375577898,0.25098,154.0,153.94,16.2972]
[1723375578079,0.25098,153.99,153.94,16.2972]
[1723375578276,0.12549,153.98,153.94,16.2972]
[1723375578777,1.87479667,153.98,153.94,16.2972]